bitfinex/quotes_SOLUSD_20250904
["timestamp","ask_amount","ask_price","bid_price","bid_amount"]
[1757005853931,42.07528686,205.2,205.16,0.68]
[1757005854133,2.87528686,205.18,205.14,0.68]
[1757005854335,0.7,205.23,205.16,2.87528686]
[1757005854519,38.46,205.22,205.19,2.87528686]
[1757005854837,38.46,205.22,205.2,0.68]
[1757005855139,38.46,205.22,205.18,3.55528686]
[1757005855529,38.46,205.22,205.19,0.68]
[1757005857218,38.46,205.22,205.19,2.87528686]
[1757005857417,0.7,205.26,205.21,2.87528686]
[1757005857619,38.48,205.25,205.22,0.68]
[1757005857815,38.48,205.25,205.22,3.55528686]
[1757005858332,38.48,205.25,205.19,4.87345353]
[1757005858532,0.7,205.24,205.19,5.55345353]
[1757005858833,0.7,205.23,205.19,8.42874039]
[1757005859234,39.18,205.25,205.2,3.55528686]
[1757005859418,39.18,205.25,205.21,2.87528686]
[1757005859614,39.18,205.25,205.21,3.55528686]
[1757005859934,44.05210798,205.25,205.21,3.55528686]
[1757005860115,0.7,205.24,205.2,2.87528686]
[1757005860320,2.87528686,205.22,205.17,2.87528686]
[1757005860536,39.16,205.21,205.17,0.68]
[1757005860731,39.16,205.21,205.17,3.55528686]
[1757005860936,38.46,205.21,205.19,2.87528686]
[1757005861131,38.46,205.21,205.19,3.55528686]
[1757005861536,38.46,205.21,205.18,2.87528686]
[1757005861733,39.13684822,205.21,205.18,2.87528686]
[1757005862249,39.13684822,205.21,205.17,3.55528686]
[1757005862455,0.7,205.2,205.17,2.87528686]
[1757005862622,2.87528686,205.18,205.13,7.11453414]
[1757005862827,3.57528686,205.18,205.14,0.68]
[1757005863023,2.87528686,205.19,205.15,0.68]
[1757005863225,38.44,205.18,205.15,0.68]
[1757005863636,39.14,205.18,205.13,3.55528686]
[1757005863838,0.7,205.17,205.13,3.55528686]
[1757005864551,0.7,205.16,205.11,3.55528686]
[1757005864928,38.44,205.15,205.11,2.87528686]
[1757005865244,38.44,205.15,205.12,0.68]
[1757005865944,39.14,205.15,205.11,2.87528686]
[1757005866147,39.14,205.15,205.11,8.4306308]
[1757005866443,38.42,205.15,205.12,0.68]
[1757005866651,38.42,205.15,205.12,3.55528686]
[1757005868147,38.42,205.15,205.11,7.7506308]
[1757005868454,38.42,205.15,205.11,3.55528686]
[1757005868638,39.12,205.15,205.11,3.55528686]
[1757005868839,39.12,205.15,205.11,8.43063493]
[1757005870140,39.12,205.15,205.11,8.46063493]
[1757005872270,3.57528686,205.14,205.11,0.03]
[1757005872436,2.87528686,205.12,205.11,0.03]
[1757005872641,41.23528686,205.12,205.11,0.03]
[1757005872840,41.93528686,205.12,205.11,0.03]
[1757005873734,39.06,205.12,205.11,0.03]
[1757005873947,41.93528686,205.12,205.11,0.03]
[1757005874350,46.81048186,205.12,205.11,0.03]
[1757005875955,5.575195,205.12,205.11,0.03]
[1757005876159,0.7,205.14,205.11,0.03]
[1757005876332,4.82979567,205.16,205.11,3.58528686]
[1757005876536,1.95450881,205.16,205.12,3.55528686]
[1757005876738,1.95450881,205.16,205.11,0.03]
[1757005876739,2.87528686,205.13,205.11,0.03]
[1757005876963,38.34,205.12,205.11,0.03]
[1757005877934,39.02,205.12,205.11,0.03]
[1757005878639,0.68,205.12,205.11,0.03]
[1757005878829,7.75042376,205.13,205.11,0.03]
[1757005879037,38.3,205.12,205.11,0.03]
[1757005880762,43.855195,205.12,205.11,0.03]
[1757005881443,43.835195,205.12,205.11,0.03]
[1757005881641,46.71048186,205.12,205.11,0.03]
[1757005884358,48.64556385,205.12,205.11,0.03]
[1757005887543,10.38556385,205.12,205.11,0.03]
[1757005887749,48.62556385,205.12,205.11,0.03]
[1757005888064,10.38556385,205.12,205.11,0.03]
[1757005888250,48.60556385,205.12,205.11,0.03]
[1757005891571,60.10671129,205.12,205.11,0.03]
[1757005891763,2.87528686,205.09,205.08,0.03]
[1757005892158,26.0,205.09,205.08,0.03]
[1757005892356,73.92646811,205.09,205.08,0.03]
[1757005892858,35.70646811,205.09,205.08,0.03]
[1757005893069,73.94646811,205.09,205.08,0.03]
[1757005893272,74.62646811,205.09,205.08,0.03]
[1757005894650,74.60646811,205.09,205.08,0.03]
[1757005895580,76.23429714,205.09,205.08,0.03]
[1757005896287,33.51118125,205.09,205.08,0.03]
[1757005896451,76.23429714,205.09,205.08,0.03]
[1757005899976,76.17429714,205.09,205.08,0.03]
[1757005902258,38.01429714,205.09,205.08,0.03]
[1757005902466,76.15429714,205.09,205.08,0.03]
[1757005903476,38.01429714,205.09,205.08,0.03]
[1757005903676,76.15429714,205.09,205.08,0.03]
[1757005907978,76.15429714,205.09,205.06,0.03]
[1757005908175,30.50311589,205.07,205.06,0.03]
[1757005908382,68.60311589,205.07,205.06,0.03]
[1757005908562,74.18949956,205.07,205.06,0.03]
[1757005909059,76.14515507,205.07,205.06,0.03]
[1757005911060,76.14515507,205.07,205.05,1e-08]
[1757005911383,4.50311589,205.06,205.05,1e-08]
[1757005911576,46.0,205.05,205.04,1e-08]
[1757005911775,89.29311589,205.05,205.04,1e-08]
[1757005912374,51.21311589,205.05,205.04,1e-08]
[1757005912576,89.29311589,205.05,205.04,1e-08]
[1757005912774,94.16997519,205.05,205.04,1e-08]
[1757005914392,74.16997519,205.05,205.04,1e-08]
[1757005916185,74.14997519,205.05,205.04,1e-08]
[1757005917097,35.37997519,205.05,205.04,1e-08]
[1757005917380,4.87590813,205.09,205.04,0.65000001]
[1757005917596,4.50311589,205.06,205.04,0.65000001]
[1757005917762,42.56311589,205.05,205.04,1e-08]
[1757005917959,42.58311589,205.05,205.04,1e-08]
[1757005918162,38.08,205.05,205.04,1e-08]
[1757005918378,17.06567847,205.09,205.04,0.65000001]
[1757005918580,4.50311589,205.05,205.04,0.65000001]
[1757005918768,42.56311589,205.05,205.04,0.65000001]
[1757005919878,47.43997519,205.05,205.04,0.65000001]
[1757005920664,38.06,205.05,205.04,0.65000001]
[1757005921983,38.04,205.05,205.04,0.65000001]
[1757005923292,9.37964325,205.07,205.04,0.65000001]
[1757005923479,38.06,205.06,205.04,0.65000001]
[1757005923678,9.37964325,205.07,205.04,0.65000001]
[1757005924082,38.04,205.06,205.04,0.65000001]
[1757005926179,4.87652736,205.07,205.05,0.65]
[1757005926382,38.02,205.06,205.05,0.65]
[1757005926583,30.93593664,205.09,205.05,0.65]
[1757005926773,38.02,205.08,205.05,5.15311589]
[1757005926972,38.02,205.08,205.06,0.65]
[1757005927387,38.02,205.08,205.07,0.65]
[1757005929400,42.89614589,205.08,205.07,0.65]
[1757005930278,42.89614589,205.08,205.05,0.65]
[1757005930809,47.39926178,205.08,205.06,0.65]
[1757005932504,42.89614589,205.08,205.06,0.65]
[1757005932683,47.39926178,205.08,205.06,0.65]
[1757005932894,47.39926178,205.08,205.07,0.65]
[1757005933079,38.02,205.08,205.07,0.65]
[1757005933696,47.39926178,205.08,205.04,1e-08]
[1757005933895,38.02,205.08,205.05,0.65]
[1757005934099,38.02,205.08,205.06,0.65]
[1757005934899,0.06,205.09,205.07,0.65]
[1757005935109,37.98,205.08,205.07,0.65]
[1757005937005,37.98,205.08,205.04,4.5031159]
[1757005937203,37.98,205.08,205.06,0.65]
[1757005937389,4.56311589,205.09,205.04,4.5031159]
[1757005937696,37.98,205.08,205.06,0.65]
[1757005939015,42.48311589,205.08,205.06,0.65]
[1757005939600,4.50311589,205.08,205.06,0.65]
[1757005939809,37.98,205.07,205.06,0.65]
[1757005939987,37.96,205.07,205.06,0.65]
[1757005940394,4.56311589,205.09,205.06,0.65]
[1757005940597,37.96,205.08,205.06,0.7]
[1757005941103,38.02,205.08,205.06,0.7]
[1757005943286,38.02,205.08,205.07,0.7]
[1757005943512,38.02,205.08,205.05,0.73]
[1757005943815,0.06,205.08,205.07,0.7]
[1757005944006,37.98,205.08,205.07,0.7]
[1757005945209,0.06,205.08,205.07,5.20311589]
[1757005945708,0.06,205.08,205.07,10.07949956]
[1757005946017,0.06,205.08,205.07,5.57638367]
[1757005946185,0.06,205.08,205.07,10.07949956]
[1757005949017,0.06,205.08,205.07,5.57638367]
[1757005949411,0.06,205.08,205.07,10.07949956]
[1757005951806,0.06,205.08,205.07,13.63381169]
[1757005952621,0.06,205.08,205.07,5.57638367]
[1757005952823,0.06,205.08,205.07,10.07949956]
[1757005957396,0.06,205.08,205.06,4.87655844]
[1757005957632,0.06,205.08,205.06,7.75685721]
[1757005957801,0.06,205.08,205.07,3.58029877]
[1757005958209,0.06,205.08,205.07,8.45668244]
[1757005961335,0.06,205.08,205.07,12.01093331]
[1757005961630,0.06,205.08,205.07,8.45668244]
[1757005962001,0.06,205.08,205.07,7.45668244]
[1757005962201,60.34427489,205.14,205.07,11.01093331]
[1757005962528,31.84,205.14,205.12,2.88029877]
[1757005962724,0.65,205.13,205.12,2.88029877]
[1757005963521,0.65,205.13,205.11,2.88029877]
[1757005963858,0.65,205.12,205.1,2.88029877]
[1757005965005,31.84,205.14,205.1,2.88029877]
[1757005965207,0.65,205.13,205.1,2.88029877]
[1757005965404,0.65,205.12,205.09,4.8759056]
[1757005965606,0.65,205.12,205.11,2.88029877]
[1757005966726,32.49,205.14,205.11,2.88029877]
[1757005967029,0.65,205.13,205.11,2.88029877]
[1757005969525,0.65,205.13,205.1,4.87564996]
[1757005969726,0.65,205.13,205.12,2.88029877]
[1757005970119,0.65,205.13,205.11,7.75565273]
[1757005970314,0.66,205.12,205.09,3.55191872]
[1757005970514,0.06,205.16,205.06,3.55191872]
[1757005970825,0.66,205.15,205.13,2.88029877]
[1757005971430,0.66,205.14,205.13,2.88029877]
[1757005972148,0.66,205.14,205.11,2.88029877]
[1757005972312,0.66,205.13,205.11,2.88029877]
[1757005973045,0.66,205.13,205.1,8.42814579]
[1757005973259,0.66,205.12,205.1,7.75576548]
[1757005973549,0.66,205.14,205.11,2.88029877]
[1757005973732,0.66,205.13,205.11,2.88029877]
[1757005974533,0.66,205.12,205.11,2.88029877]
[1757005974726,0.66,205.12,205.1,2.88029877]
[1757005976253,0.66,205.12,205.11,0.03]
[1757005976738,42.77454659,205.15,205.11,0.03]
[1757005976948,0.66,205.14,205.11,2.91029877]
[1757005977152,2.88029877,205.13,205.11,0.03]
[1757005977637,5.53546671,205.12,205.11,0.03]
[1757005977841,0.66,205.12,205.11,0.03]
[1757005978139,5.535195,205.12,205.11,0.03]
[1757005978341,8.41549377,205.12,205.11,0.03]
[1757005980046,14.87947469,205.12,205.11,0.03]
[1757005981044,26.40066977,205.12,205.11,0.03]
[1757005981254,2.88029877,205.09,205.08,0.03]
[1757005981445,66.78029877,205.09,205.08,0.03]
[1757005981646,67.44029877,205.09,205.08,0.03]
[1757005981830,74.27138446,205.09,205.08,0.03]
[1757005982743,48.27138446,205.09,205.08,0.03]
[1757005985825,26.0,205.07,205.06,0.03]
[1757005986026,26.0,205.07,205.05,0.03]
[1757005986027,26.0,205.06,205.05,0.03]
[1757005986232,67.44029877,205.06,205.05,0.03]
[1757005986733,31.49595428,205.06,205.05,0.03]
[1757005987150,69.39595428,205.06,205.05,0.03]
[1757005987825,74.27257575,205.06,205.05,0.03]
[1757005989051,36.37257575,205.06,205.05,0.03]
[1757005989229,74.27257575,205.06,205.05,0.03]
[1757005989946,36.37257575,205.06,205.05,0.03]
[1757005990245,74.27257575,205.06,205.05,0.03]
[1757005995352,36.37257575,205.06,205.05,0.03]
[1757005995850,74.27257575,205.06,205.05,0.03]
[1757005997954,73.61257575,205.06,205.05,0.03]
[1757005998134,74.27257575,205.06,205.05,0.03]
[1757005998860,33.49227698,205.06,205.05,0.03]
[1757005999160,4.83595428,205.06,205.05,0.73]
[1757005999338,42.73595428,205.06,205.05,0.73]
[1757005999536,47.61257575,205.06,205.05,0.73]
[1757005999754,47.61257575,205.06,205.05,0.03]
[1757006001249,48.27257575,205.06,205.05,0.03]
[1757006001759,47.61257575,205.06,205.05,0.03]
[1757006002559,42.73595428,205.06,205.05,0.03]
[1757006002855,48.27257575,205.06,205.05,0.03]
[1757006003764,74.27257575,205.06,205.05,0.03]
[1757006004441,48.27257575,205.06,205.05,0.03]
[1757006007373,9.71257575,205.06,205.05,0.03]
[1757006007549,48.27257575,205.06,205.05,0.03]
[1757006008666,47.61257575,205.06,205.05,0.03]
[1757006009876,48.27257575,205.06,205.05,0.03]
[1757006010353,48.33257575,205.06,205.05,0.03]
[1757006011847,10.43257575,205.06,205.05,0.03]
[1757006012048,47.67257575,205.06,205.05,0.03]
[1757006013070,48.33257575,205.06,205.05,0.03]
[1757006013673,47.67257575,205.06,205.05,0.03]
[1757006016574,48.33257575,205.06,205.05,0.03]
[1757006017467,49.9571737,205.06,205.05,0.03]
[1757006020081,49.9571737,205.06,205.04,1e-08]
[1757006020251,4.50489672,205.05,205.04,1e-08]
[1757006020453,4.50489672,205.05,205.03,0.03]
[1757006020656,69.06489672,205.04,205.03,0.03]
[1757006021782,71.02093476,205.04,205.03,0.03]
[1757006022286,75.89803191,205.04,205.03,0.03]
[1757006025863,71.39313519,205.04,205.03,0.03]
[1757006026177,75.89803191,205.04,205.03,0.03]
[1757006028779,80.40292863,205.04,205.03,0.03]
[1757006028961,80.40292863,205.04,205.01,0.03]
[1757006029162,26.0,204.99,204.98,0.03]
[1757006029362,26.0,204.99,204.91,0.71]
[1757006029363,26.0,204.96,204.91,0.71]
[1757006029570,42.38489672,204.95,204.91,0.71]
[1757006030377,47.92413555,204.95,204.9,0.1]
[1757006030679,49.88065197,204.95,204.9,0.1]
[1757006031466,12.00065197,204.95,204.9,0.1]
[1757006031661,15.82582331,204.95,204.9,0.1]
[1757006031873,53.70582331,204.95,204.9,0.1]
[1757006033782,11.32092659,204.95,204.9,0.1]
[1757006034089,53.70582331,204.95,204.9,0.1]
[1757006034291,15.82582331,204.95,204.9,0.1]
[1757006034494,53.70582331,204.95,204.9,0.1]
[1757006034681,15.82582331,204.95,204.9,0.1]
[1757006034984,53.70582331,204.95,204.9,0.1]
[1757006036195,15.82582331,204.95,204.9,0.1]
[1757006036492,53.70582331,204.95,204.9,0.1]
[1757006037976,15.82582331,204.95,204.9,0.1]
[1757006038184,53.70582331,204.95,204.9,0.81]
[1757006039094,15.82582331,204.95,204.9,0.81]
[1757006039296,53.70582331,204.95,204.9,0.81]
[1757006040373,53.70582331,204.95,204.9,0.1]
[1757006040982,53.04582331,204.95,204.9,0.1]
[1757006041298,53.04582331,204.95,204.9,0.81]
[1757006041480,48.54092659,204.95,204.9,0.81]
[1757006041682,53.04582331,204.95,204.9,0.81]
[1757006042073,53.04582331,204.95,204.91,0.71]
[1757006042672,15.16582331,204.95,204.91,0.71]
[1757006042874,53.04582331,204.95,204.91,0.71]
[1757006043096,53.70582331,204.95,204.91,0.71]
[1757006045291,53.70582331,204.95,204.91,0.74]
[1757006046000,49.20092659,204.95,204.91,0.03]
[1757006046212,53.70582331,204.95,204.91,0.03]
[1757006048001,15.82582331,204.95,204.91,0.03]
[1757006048296,53.70582331,204.95,204.91,0.03]
[1757006049803,26.0,204.92,204.91,0.03]
[1757006049991,68.38489672,204.92,204.91,0.03]
[1757006050504,75.22174916,204.92,204.91,0.03]
[1757006050999,37.34174916,204.92,204.91,0.03]
[1757006051204,75.22174916,204.92,204.91,0.03]
[1757006052907,70.71685244,204.92,204.91,0.03]
[1757006053208,75.22174916,204.92,204.91,0.03]
[1757006054009,37.34174916,204.92,204.91,0.03]
[1757006054308,75.22174916,204.92,204.91,0.03]
[1757006056705,75.22174916,204.92,204.91,0.74]
[1757006056894,75.22174916,204.92,204.91,0.03]
[1757006057601,70.71685244,204.92,204.91,0.03]
[1757006057803,75.22174916,204.92,204.91,0.03]
[1757006060112,75.94174916,204.92,204.91,0.03]
[1757006062507,38.06174916,204.92,204.91,0.03]
[1757006062681,75.22174916,204.92,204.91,0.03]
[1757006065713,75.94174916,204.92,204.91,0.03]
[1757006069714,38.06174916,204.92,204.91,0.03]
[1757006069915,75.92174916,204.92,204.91,0.03]
[1757006072316,70.69685244,204.92,204.91,0.03]
[1757006072502,75.20174916,204.92,204.91,0.03]
[1757006073798,75.92174916,204.92,204.91,0.03]
[1757006074796,73.96484987,204.92,204.91,0.03]
[1757006077919,75.92194066,204.92,204.91,0.03]
[1757006079599,74.30456942,204.92,204.91,0.03]
[1757006080218,71.41704394,204.92,204.91,0.03]
[1757006080417,74.30456942,204.92,204.91,0.03]
[1757006083814,74.30456942,204.92,204.9,1e-08]
[1757006083815,85.85467134,204.92,204.9,1e-08]
[1757006084024,30.88066767,204.89,204.88,1e-08]
[1757006084201,71.62819315,204.89,204.88,1e-08]
[1757006084403,74.30566703,204.89,204.88,1e-08]
[1757006084794,32.83814155,204.89,204.88,1e-08]
[1757006085004,73.56566703,204.89,204.88,1e-08]
[1757006085200,70.67814155,204.89,204.88,0.68000001]
[1757006085520,73.56566703,204.89,204.88,1e-08]
[1757006087020,71.60819315,204.89,204.88,1e-08]
[1757006087513,33.76819315,204.89,204.88,0.67000001]
[1757006087818,71.60819315,204.89,204.88,0.67000001]
[1757006088017,28.88752548,204.89,204.88,0.67000001]
[1757006088224,42.72066767,204.89,204.88,0.67000001]
[1757006088526,45.60819315,204.89,204.88,1e-08]
[1757006091122,46.32819315,204.89,204.88,1e-08]
[1757006091424,48.2853797,204.89,204.88,1e-08]
[1757006092327,9.7253797,204.89,204.88,1e-08]
[1757006092542,47.5653797,204.89,204.88,1e-08]
[1757006093129,68.68471203,204.89,204.88,1e-08]
[1757006093425,47.5653797,204.89,204.88,1e-08]
[1757006093625,73.5653797,204.89,204.88,1e-08]
[1757006094014,27.95718655,204.89,204.88,1e-08]
[1757006094220,1.95718655,204.89,204.88,0.67000001]
[1757006094510,39.79718655,204.89,204.88,0.67000001]
[1757006095713,39.79718655,204.89,204.88,1e-08]
[1757006096507,39.79718655,204.89,204.88,0.67000001]
[1757006098329,39.79718655,204.89,204.88,1e-08]
[1757006098734,39.85718655,204.89,204.88,1e-08]
[1757006100310,47.6253797,204.89,204.88,1e-08]
[1757006101018,42.74471203,204.89,204.88,1e-08]
[1757006101216,2.01718655,204.89,204.88,0.67000001]
[1757006101419,39.85718655,204.89,204.88,0.67000001]
[1757006102140,37.9,204.89,204.88,0.67000001]
[1757006102616,37.9,204.89,204.88,1e-08]
[1757006102812,37.9,204.89,204.88,0.67000001]
[1757006103337,37.88,204.89,204.88,1e-08]
[1757006103714,37.88,204.89,204.88,0.67000001]
[1757006103912,37.88,204.89,204.88,1e-08]
[1757006105030,38.6,204.89,204.88,1e-08]
[1757006105220,2.01699504,204.89,204.88,3.55752549]
[1757006105532,37.88,204.89,204.88,0.67000001]
[1757006106724,37.88,204.89,204.88,3.55752549]
[1757006106725,0.06,204.89,204.88,3.55752549]
[1757006107041,37.88,204.89,204.88,8.43843138]
[1757006107549,0.06,204.89,204.88,8.43843138]
[1757006108336,0.06,204.89,204.88,11.99595687]
[1757006111242,0.06,204.89,204.88,2.88752549]
[1757006113425,0.06,204.89,204.88,8.43843138]
[1757006115536,0.06,204.89,204.88,16.97686276]
[1757006115733,0.06,204.89,204.88,8.43843138]
[1757006117240,0.06,204.89,204.88,23.11015164]
[1757006119841,0.06,204.89,204.88,34.66025356]
[1757006122638,0.06,204.92,204.88,46.8625183]
[1757006122841,0.06,204.92,204.91,2.88752548]
[1757006123249,0.06,204.92,204.91,3.58752548]
[1757006123445,0.06,204.92,204.91,5.54327661]
[1757006124242,0.06,204.92,204.91,10.42346791]
[1757006126438,0.06,204.92,204.91,7.53594243]
[1757006126648,0.06,204.92,204.91,9.72346791]
[1757006126839,0.06,204.92,204.91,10.42346791]
[1757006127242,0.06,204.92,204.91,9.72346791]
[1757006129952,0.76,204.92,204.89,84.88062142]
[1757006130263,0.7,204.91,204.9,2.88752548]
[1757006133654,0.7,204.91,204.89,2.88752548]
[1757006133876,0.7,204.9,204.89,2.88752548]
[1757006135252,0.06,204.92,204.89,2.88752548]
[1757006135459,0.06,204.92,204.91,2.88752548]
[1757006136568,0.06,204.92,204.91,3.58752548]
[1757006137177,0.06,204.92,204.91,8.46771678]
[1757006137386,0.06,204.92,204.91,10.42346791]
[1757006141484,0.06,204.92,204.91,12.04049989]
[1757006144887,0.06,204.94,204.91,12.04049989]
[1757006145190,0.06,204.94,204.93,4.50455746]
[1757006145694,0.06,204.94,204.93,5.20455746]
[1757006145895,0.06,204.94,204.93,7.16002176]
[1757006146783,0.06,204.94,204.93,12.03973678]
[1757006148091,0.06,204.94,204.93,11.33973678]
[1757006148791,0.06,204.94,204.93,12.05973678]
[1757006151104,0.06,204.94,204.93,92.05973678]
[1757006151296,0.06,204.94,204.93,91.33973678]
[1757006151605,0.06,204.94,204.93,92.05973678]
[1757006152908,0.06,204.94,204.93,129.81973678]
[1757006154220,0.06,204.94,204.93,129.09973678]
[1757006154388,0.06,204.94,204.93,91.33973678]
[1757006154587,0.06,204.94,204.93,129.09973678]
[1757006154989,0.06,204.94,204.93,129.81973678]
[1757006156406,0.06,204.94,204.93,129.09973678]
[1757006156790,0.76,204.94,204.93,129.09973678]
[1757006156995,0.76,204.94,204.93,49.09973678]
[1757006157312,0.76,204.94,204.93,11.33973678]
[1757006157491,0.76,204.94,204.93,49.09973678]
[1757006158393,0.76,204.94,204.93,11.33973678]
[1757006158699,0.76,204.94,204.93,49.09973678]
[1757006159694,0.06,204.94,204.93,49.09973678]
[1757006160296,0.76,204.94,204.93,49.07973678]
[1757006160596,0.76,204.94,204.93,47.12427248]
[1757006161404,0.76,204.94,204.93,9.38427248]
[1757006161919,0.76,204.94,204.93,11.33983238]
[1757006164597,0.06,204.94,204.93,11.33983238]
[1757006166415,0.06,204.94,204.93,12.05983238]
[1757006167916,0.06,204.94,204.93,11.33983238]
[1757006168511,0.06,204.94,204.93,49.07983238]
[1757006169032,0.06,204.94,204.93,129.07983238]
[1757006169628,0.06,204.94,204.93,91.33983238]
[1757006169928,0.06,204.94,204.93,129.07983238]
[1757006170130,0.06,204.94,204.93,11.33983238]
[1757006170333,0.76,204.94,204.93,6.83527492]
[1757006170534,0.76,204.94,204.93,11.33983238]
[1757006171112,0.76,204.94,204.93,9.38427248]
[1757006172633,0.76,204.94,204.92,1.9855599]
[1757006172824,0.06,204.94,204.93,4.50455746]
[1757006173018,0.76,204.94,204.93,4.50455746]
[1757006174828,0.76,204.94,204.92,0.03]
[1757006175031,4.50455746,204.93,204.92,0.03]
[1757006175412,5.20455746,204.93,204.92,0.03]
[1757006175818,0.7,204.93,204.92,0.03]
[1757006178530,5.57971502,204.93,204.92,0.03]
[1757006179221,10.08427248,204.93,204.92,0.03]
[1757006179613,5.20455746,204.93,204.92,0.03]
[1757006179809,0.7,204.93,204.92,0.03]
[1757006182019,0.78,204.94,204.92,0.03]
[1757006182217,0.72,204.93,204.92,0.03]
[1757006182724,0.72,204.93,204.92,4.53455746]
[1757006183347,0.06,204.94,204.92,4.53455746]
[1757006183633,0.78,204.94,204.93,4.50455746]
[1757006184043,0.78,204.94,204.92,4.53455746]
[1757006184244,0.72,204.93,204.92,4.53455746]
[1757006184833,0.06,204.94,204.92,4.53455746]
[1757006185043,0.72,204.93,204.92,4.53455746]
[1757006187539,0.72,204.93,204.92,0.03]
[1757006189049,0.72,204.93,204.92,4.53455746]
[1757006189257,0.72,204.93,204.92,9.41451061]
[1757006189462,0.06,204.94,204.92,9.41451061]
[1757006189955,0.78,204.94,204.92,4.53455746]
[1757006190334,0.06,204.94,204.92,0.03]
[1757006190533,0.72,204.93,204.92,4.53455746]
[1757006191146,0.06,204.94,204.92,4.53455746]
[1757006191351,0.78,204.94,204.92,4.53455746]
[1757006191552,0.78,204.94,204.92,9.41449933]
[1757006192336,0.06,204.94,204.93,4.50455746]
[1757006192835,0.78,204.94,204.93,4.50455746]
[1757006194239,0.06,204.94,204.93,9.38427248]
[1757006197158,0.06,204.94,204.92,4.90993421]
[1757006197353,0.06,204.94,204.93,4.50455746]
[1757006199157,0.06,204.94,204.92,9.41449167]
[1757006199362,0.72,204.93,204.92,0.03]
[1757006199860,5.22455746,204.93,204.92,0.03]
[1757006201562,8.48550444,204.93,204.92,0.03]
[1757006203460,3.60578942,204.93,204.92,0.03]
[1757006206661,0.72,204.93,204.92,0.03]
[1757006206865,3.60578942,204.93,204.92,0.03]
[1757006209854,0.72,204.93,204.92,0.03]
[1757006212972,0.06,204.94,204.92,0.03]
[1757006213158,0.06,204.94,204.93,3.58578942]
[1757006213356,0.06,204.94,204.93,2.88578942]
[1757006213972,0.06,204.94,204.93,4.84163618]
[1757006216958,0.06,204.94,204.93,5.54163618]
[1757006217378,0.06,204.94,204.93,4.84163618]
[1757006219165,0.06,204.94,204.93,9.7213512]
[1757006219663,0.06,204.94,204.93,6.83556178]
[1757006220273,3.66578942,204.94,204.93,1.95584676]
[1757006220481,3.66578942,204.94,204.92,0.03]
[1757006220658,0.78,204.94,204.92,0.03]
[1757006221566,0.06,204.94,204.92,0.03]
[1757006224083,0.06,204.94,204.92,5.60974357]
[1757006224264,0.06,204.94,204.92,4.90974357]
[1757006224976,0.06,204.94,204.92,8.49553299]
[1757006225163,0.06,204.94,204.93,0.7]
[1757006225570,0.06,204.94,204.93,3.58578942]
[1757006225871,0.06,204.94,204.93,5.54154055]
[1757006226175,0.06,204.94,204.93,10.42125557]
[1757006226579,0.06,204.94,204.93,6.83546615]
[1757006230481,0.78,204.94,204.92,0.03]
[1757006230982,0.72,204.93,204.92,0.03]
[1757006232170,0.06,204.94,204.92,0.03]
[1757006232373,0.78,204.94,204.92,0.03]
[1757006232582,0.06,204.94,204.93,0.7]
[1757006232980,0.06,204.94,204.93,1.95575113]
[1757006233696,0.06,204.94,204.93,10.40420501]
[1757006235195,0.06,204.94,204.93,10.40372717]
[1757006235903,0.06,204.94,204.93,13.28951659]
[1757006236194,0.06,204.94,204.93,13.28974292]